[Event "Polish Youth G18 Championship 2023"]
[Site "Jastrzebia Gora"]
[Date "2023.03.12"]
[Round "1.1"]
[White "Trybus, Dominika"]
[Black "Starosta, Martyna"]
[Result "0-1"]
[ECO "B13"]
[WhiteElo "1543"]
[BlackElo "2138"]
[Annotator "TA"]
[PlyCount "104"]
[EventDate "2023.03.11"]
[EventType "swiss"]
[EventCountry "POL"]
[SourceTitle "playchess.com"]
[Source "ChessBase"]
[SourceQuality "1"]
[TimeControl "40/5400+30:1800+30"]

{[%evp 11,104,14,15,0,0,0,1,0,0,0,0,0,0,0,0,0,-4,-7,14,6,29,-46,-33,-35,-20,-34,-17,-31,-33,-52,-22,-124,-134,-125,-128,-119,-68,-61,-64,-60,-57,-136,-120,-122,-122,-122,-126,-124,-110,-140,-110,-121,-125,-193,-167,-188,0,-175,-177,-175,-183,-278,-159,-141,-116,-215,-218,-306,-295,-894,-893,-856,-846,-869,-844,-1114,-991,-29968,-29966,-29958,-6279,-8820,-11188,-29973,-29975,-29976,-29977,-29979,-29980,-29980,-29981,-29984,-29985,-29986,-29987]} 1. e4 {[%emt 0:00:02]} c6 {[%emt 0:00:04]} 2. d4 {[%emt 0:00:09]} d5 {[%emt 0:00:05]} 3. exd5 {[%emt 0:00:22]} cxd5 {[%emt 0:00:05]} 4. Bd3 {[%emt 0:00:08]} Nc6 {[%emt 0:00:25]} 5. c3 {[%emt 0:00:10]} Nf6 {[%emt 0:00:07]} 6. h3 {[%emt 0:01:26]} g6 $1 {The main line 6...g6 scores better than 6...e5.} 7. Qc2 {[%emt 0:02:27] B13: Caro-Kann: Exchange Variation and Panov-Botvinnik Attack.} e5 {[%emt 0:05:12]} 8. dxe5 $1 {[%emt 0:03:43]} Nxe5 {[%emt 0:00:09]} 9. Bb5+ {[%emt 0:01:19] The position is equal.} Bd7 {[%emt 0:05:11]} 10. Bxd7+ {[%emt 0:00:40]} Qxd7 {[%emt 0:01:51]} 11. Bf4 {[%emt 0:02:37]} Bd6 {[%emt 0:04:57]} 12. Ne2 {[%emt 0:01:16]} O-O {[%emt 0:05:40][%cal Be8g8,Bg8g7,Bg7f6,Bh8f8,Bf8e8,Be8e4][%mdl 32]} 13. O-O {[%emt 0:07:05]} Rfe8 {[%emt 0:03:49][%cal Oe5f3] Black wants to play ...Nf3+!} 14. Nd2 {[%emt 0:06:57] [#] Against Nf3+} Rad8 $146 {[%emt 0:12:07]} (14... Nc4 {simplifies} 15. Nxc4 Bxf4 16. Nxf4 dxc4 17. Rad1 Qc7) ({Predecessor:} 14... Bc5 15. Rad1 Qb5 16. Nc1 Bb6 17. Ndb3 Nc4 18. Nd3 Rac8 19. Qb1 Re4 20. Bg5 Nh5 {0-1 Nurgaliyev,S (2059)-Simantsev,M (2374) Cheliabinsk Panchenko Memorial op-A 2021 (3)}) 15. Bg5 {[%emt 0:05:17]} Kg7 {[%emt 0:07:26]} 16. f4 {[%emt 0:10:53]} (16. Rfd1 $11) 16... Nc6 {[%emt 0:06:06]} 17. Nb3 {[%emt 0:04:34]} h6 {[%emt 0:03:00]} 18. Bh4 {[%emt 0:05:15]} (18. Bxf6+ {with more complications.} Kxf6 19. Rad1 Qe7 20. Ned4) 18... Re4 {[%emt 0:04:12]} 19. Bxf6+ {[%emt 0:04:19]} Kxf6 {[%emt 0:00:06]} 20. Qd2 {[%emt 0:04:36]} Rde8 {[%emt 0:05:17]} (20... Bc7 $5) 21. Ned4 {[%emt 0:07:01]} (21. Ng3 $11 Re3 22. Rae1 Rxe1 23. Rxe1) 21... Nxd4 $17 {[%emt 0:02:22]} 22. Nxd4 {[%emt 0:00:08]} Bc5 $1 {[%emt 0:01:44]} 23. Rae1 {[%emt 0:01:53] Against Re2} Qe7 {[%emt 0:04:14]} ({Black should play} 23... Qd6 $17 24. Rxe4 Rxe4) 24. Rxe4 $15 {[%emt 0:05:15]} Qxe4 {[%emt 0:00:11]} 25. Rd1 {[%emt 0:00:57]} Bxd4+ {[%emt 0:07:21]} 26. cxd4 {[%emt 0:01:44][%mdl 4096] Endgame KQR-KQR} (26. Qxd4+ $15 Qxd4+ 27. Rxd4) 26... Rc8 $36 {[%emt 0:02:56][%mdl 2048] Hoping for ...Rc2. Black has strong initiative.} 27. Qf2 {[%emt 0:06:52]} Rc2 {[%emt 0:01:54]} 28. Rd2 {[%emt 0:00:35]} Rc1+ {[%emt 0:02:53]} 29. Kh2 {[%emt 0:00:56] [#]} Re1 $1 {[%emt 0:00:16] Prevents Re2. Black has more active pieces.} 30. Rc2 {[%emt 0:07:37]} Kg7 {[%emt 0:02:19]} 31. Rd2 {[%emt 0:02:33]} Re3 {[%emt 0:04:53]} 32. a3 {[%emt 0:02:10]} (32. Rc2 $17 {was necessary.}) 32... Kh7 {[%emt 0:00:48]} 33. Kg1 {[%emt 0:01:29]} Kg7 {[%emt 0:01:35]} 34. Kh2 {[%emt 0:00:07]} g5 {[%emt 0:00:44]} 35. fxg5 {[%emt 0:02:33]} hxg5 {[%emt 0:00:05][%cal Bh6g5,Bg5g4][%mdl 32]} 36. g3 {[%emt 0:00:38]} (36. a4 $142) 36... Re1 {[%emt 0:02:35]} (36... f5 $19 {aiming for ...f4.} 37. Qg2 Kf6) 37. Qg2 $17 {[%emt 0:00:13]} Qe3 {[%emt 0:00:57] Strongly threatening ...f5.} 38. h4 {[%emt 0:01:45]} (38. Qf2 $17 {is a better defense.}) 38... Kg6 {[%emt 0:02:24] White must now prevent ...f5.} 39. Rf2 {[%emt 0:01:00] [#]} (39. Qf2 $142) 39... g4 $1 $19 {[%emt 0:02:00] ...f5 would be deadly.} ({Inferior is} 39... Qxd4 40. Qf3 Qg7 41. Qxd5 gxh4 42. gxh4 (42. Qxb7 $2 {too greedy.} hxg3+ 43. Kg2 gxf2 $19) (42. Qf3 Qe5 $11) 42... Qe5+ 43. Qxe5 Rxe5 44. Kg3 $11) 40. Rd2 $2 {[%emt 0:00:00]} ({Not} 40. Rf4 $2 Re2 41. Rxg4+ Kf5 42. Rf4+ Ke6 $19) (40. Rc2) 40... f5 {[%emt 0:00:00] ( -> ...f4)} 41. Rf2 {[%emt 0:06:21]} Kh6 {[%emt 0:05:59]} 42. b4 {[%emt 0:01:08]} f4 {[%emt 0:02:14][%mdl 64] Deflection} 43. Rxf4 {[%emt 0:08:52]} Re2 {[%emt 0:00:15]} 44. Qxe2 {[%emt 0:00:12]} Qxe2+ {[%emt 0:00:06] KQ-KR} 45. Kh1 {[%emt 0:00:18]} Qd3 {[%emt 0:01:18]} (45... Qe3 $142 46. Kh2 Qxa3 47. Rxg4 Qxb4 48. Rg5 Qxd4 49. Kh3 Qe4 50. g4 d4 51. Ra5 d3 52. Rh5+ Kg7 53. Rg5+ Kf7 54. Rf5+ Qxf5 {[%mdl 64] Promotion} 55. gxf5 d2 56. h5 d1=Q 57. h6 a5 58. Kh4 Qh1+ 59. Kg5 a4 60. Kf4 a3 61. Ke3 a2 62. h7 Qxh7 63. Kf4 a1=Q 64. Kg3 Qxf5 65. Kg2 Qb2+ 66. Kh1 Qf1#) 46. Kg2 {[%emt 0:00:59]} Qxa3 {[%emt 0:00:06]} 47. Rxg4 {[%emt 0:00:16]} Qxb4 {[%emt 0:00:08] Black mates.} 48. Rf4 {[%emt 0:00:52]} a5 {[%emt 0:00:26][%cal Ba7a5,Ba5a4,Ba4a3][%mdl 32]} 49. g4 {[%emt 0:00:34]} a4 {[%emt 0:00:33]} 50. Rf6+ {[%emt 0:01:00]} Kg7 {[%emt 0:00:06]} 51. g5 {[%emt 0:00:16]} Qxd4 {[%emt 0:00:21]} 52. Rf3 {[%emt 0:00:37]} a3 {[%emt 0:00:05] Weighted Error Value: White=0.55/Black=0.25 (precise)} 0-1

[Event "Polish Youth G18 Championship 2023"]
[Site "Jastrzebia Gora"]
[Date "2023.03.12"]
[Round "1.2"]
[White "Goraj, Barbara"]
[Black "Krzyzosiak, Anna"]
[Result "1-0"]
[ECO "B07"]
[WhiteElo "2130"]
[BlackElo "1503"]
[Annotator "TA"]
[PlyCount "97"]
[EventDate "2023.03.11"]
[EventType "swiss"]
[EventCountry "POL"]
[SourceTitle "playchess.com"]
[Source "ChessBase"]
[SourceQuality "1"]
[TimeControl "40/5400+30:1800+30"]

{[%evp 9,97,30,58,29,50,42,54,58,61,57,85,61,86,86,82,86,93,40,53,44,43,54,105,102,170,83,97,78,110,69,103,54,77,52,47,38,29,26,152,22,128,161,135,121,136,136,128,137,130,0,470,466,715,697,656,271,263,250,250,246,241,62,148,151,756,139,115,96,98,80,274,301,309,309,278,270,483,474,5418,5418,29966,29970,29986,29986,29986,29987,29988,29989,29989,29990]} 1. e4 {[%emt 0:00:03]} d6 {[%emt 0:00:08]} 2. d4 {[%emt 0:00:24]} g6 {[%emt 0:00:08]} 3. Nc3 {[%emt 0:02:32]} Nf6 {[%emt 0:00:12]} 4. f3 {[%emt 0:01:22]} c6 {[%emt 0:00:45]} 5. Be3 {[%emt 0:01:13]} Qb6 {[%emt 0:01:02]} 6. b3 {[%emt 0:14:43] B07: Pirc Defence: Miscellaneous Systems.} Bg7 {[%emt 0:07:18]} 7. Qd2 {[%emt 0:02:59]} h5 {[%emt 0:03:09] [#]} 8. Na4 $146 {[%emt 0:10:27] White is slightly better.} ({Predecessor:} 8. Bc4 Qc7 9. a4 Nbd7 10. a5 e5 11. d5 O-O 12. dxc6 bxc6 13. Nge2 Rd8 14. O-O {1-0 Peczely,S (2182)-Peralta,F (2613) Skopje Karposh op 2014 (1)}) 8... Qc7 {[%emt 0:03:39]} 9. c4 {[%emt 0:00:44]} Nbd7 {[%emt 0:14:08]} 10. Rc1 {[%emt 0:03:58]} Rb8 {[%emt 0:09:28]} 11. Bd3 {[%emt 0:03:24]} a6 {[%emt 0:05:41]} 12. Ne2 {[%emt 0:03:53]} b5 {[%emt 0:01:46]} 13. cxb5 {[%emt 0:05:57]} ({Better is} 13. Nac3 $16) 13... axb5 $14 {[%emt 0:00:07]} 14. Nac3 {[%emt 0:01:12]} Qa5 {[%emt 0:04:27]} 15. O-O {[%emt 0:01:55]} b4 {[%emt 0:15:12]} (15... Bb7 $14) 16. Na4 $16 {[%emt 0:01:58]} Nb6 {[%emt 0:01:25]} (16... Qa8 $16 {was necessary.}) 17. Nxb6 {[%emt 0:08:52]} (17. Rxc6 $18 Nxa4 18. bxa4) 17... Qxb6 {[%emt 0:02:23]} 18. h3 {[%emt 0:06:57]} h4 {[%emt 0:07:48]} 19. f4 {[%emt 0:05:01]} Ba6 {[%emt 0:05:56]} 20. Bb1 {[%emt 0:04:48]} (20. f5 $16) 20... Qb5 {[%emt 0:03:50]} 21. Rf2 {[%emt 0:03:30]} Rd8 {[%emt 0:05:38]} 22. Kh2 {[%emt 0:09:29]} Nh5 {[%emt 0:02:56]} 23. Rc4 {[%emt 0:01:45]} Qa5 {[%emt 0:04:04]} (23... c5 $11 {remains equal.}) 24. Qxb4 {[%emt 0:02:18]} (24. Rxb4 $6 c5 25. dxc5 dxc5 $14) (24. Rxc6 $16 {Hoping for d5.} Bb5 25. Rc1) 24... Qc7 {[%emt 0:00:15]} (24... Qxb4 $11 25. Rxb4 c5 26. dxc5 dxc5) 25. Rc1 {[%emt 0:00:35]} O-O {[%emt 0:00:58]} 26. Qd2 {[%emt 0:01:28]} Qb7 {[%emt 0:00:34]} 27. f5 {[%emt 0:01:52]} c5 {[%emt 0:00:20]} 28. Nf4 {[%emt 0:00:32]} (28. dxc5 $6 dxc5 29. Qe1 Bb2 $11) 28... Ng3 {[%emt 0:00:25]} 29. d5 {[%emt 0:00:27]} ({Resist} 29. dxc5 dxc5 30. Qe1 Qb8) (29. fxg6 Nxe4 30. Qd1 fxg6 $14) (29. Nd5 $16) 29... gxf5 $2 {[%emt 0:00:19][%mdl 8192]} (29... g5 $11) 30. exf5 $18 {[%emt 0:00:12]} Be5 {[%emt 0:00:27]} (30... Rc8 $142 31. Qd1 Bf6) 31. Qd1 {[%emt 0:00:34]} Kh8 {[%emt 0:00:42]} 32. Qg4 {[%emt 0:00:40]} (32. f6 $142 exf6 33. Qg4) 32... Bf6 {[%emt 0:00:08]} 33. Qf3 {[%emt 0:00:37] [#] aiming for Nh5.} Be5 {[%emt 0:00:41]} 34. Kg1 {[%emt 0:00:25]} Rg8 {[%emt 0:00:22]} 35. Nd3 $2 {[%emt 0:00:37]} (35. Nh5 $18) 35... Bxd3 {[%emt 0:00:46]} (35... Bf6 $14) 36. Bxd3 $16 {[%emt 0:00:07][%cal Of5f6]} Qb4 $2 {[%emt 0:00:50]} (36... Bf6 $16 37. Rc4 Ra8) 37. Bc4 $2 {[%emt 0:00:26]} (37. Rc4 $18 {and White stays clearly on top.}) 37... Rg7 {[%emt 0:00:25]} 38. Bd2 {[%emt 0:00:52][%cal Be3d2,Bd2c3,Bc3e5][%mdl 32]} Qa3 {[%emt 0:00:28]} 39. Re1 {[%emt 0:00:29][%cal Oe1e5] Black must now prevent Rxe5!} Rdg8 $2 {[%emt 0:00:24]} (39... f6 $16) 40. Bc3 $18 {[%emt 0:00:00]} f6 {[%emt 0:00:00] [#]} 41. Bxe5 $1 {[%emt 0:08:15]} dxe5 {[%emt 0:06:37]} 42. d6 {[%emt 0:01:22]} Qa5 $2 {[%emt 0:07:06] Black is weak on the light squares} (42... exd6 43. Bxg8 Rxg8) 43. Qe3 {[%emt 0:04:50] Active counter play!} Nxf5 {[%emt 0:06:09]} (43... Qd8 $142 44. dxe7 (44. Qxc5 exd6 45. Qb4 Qb8 $16) 44... Qxe7 45. Bxg8 Kxg8) 44. Rxf5 {[%emt 0:02:55][%cal Bf2f5,Bf5f6,Bf6f8][%mdl 32] White wants to mate with Rh5+.} Rxg2+ {[%emt 0:00:20]} 45. Kh1 {[%emt 0:01:05][%cal Re3h6] White mates.} R8g6 {[%emt 0:01:15]} 46. dxe7 {[%emt 0:03:30]} Qa8 {[%emt 0:03:38]} 47. Qf3 {[%emt 0:02:30]} (47. Qxc5 $2 {leads to mate.} R2g3+ 48. Qd5 Rxh3#) 47... Qe8 {[%emt 0:03:59]} 48. Rxf6 {[%emt 0:01:33]} Qxe7 {[%emt 0:01:30]} 49. Rf8+ {[%emt 0:00:47] An entertaining game by Goraj.   Weighted Error Value: White=0.45/Black=0.61} 1-0

[Event "Polish Youth G18 Championship 2023"]
[Site "Jastrzebia Gora"]
[Date "2023.03.12"]
[Round "1.3"]
[White "Dallemura, Anna"]
[Black "Zabrzanska, Weronika"]
[Result "0-1"]
[ECO "C78"]
[WhiteElo "1496"]
[BlackElo "2021"]
[Annotator "TA"]
[PlyCount "78"]
[EventDate "2023.03.11"]
[EventType "swiss"]
[EventCountry "POL"]
[SourceTitle "playchess.com"]
[Source "ChessBase"]
[SourceQuality "1"]
[TimeControl "40/5400+30:1800+30"]

{[%evp 13,78,14,12,15,27,9,20,15,14,13,6,2,0,15,25,27,47,52,57,0,3,9,45,40,45,56,78,77,73,75,77,72,84,70,139,97,117,114,121,71,100,41,42,39,47,38,60,37,35,25,27,8,8,-211,-193,-255,-244,-245,-204,-493,-467,-721,-691,-1094,-1097,-29996,-29997]} 1. e4 {[%emt 0:00:03]} e5 {[%emt 0:00:12]} 2. Nf3 {[%emt 0:00:12]} Nc6 {[%emt 0:00:06]} 3. Bb5 {[%emt 0:00:07]} a6 {[%emt 0:00:14]} 4. Ba4 {[%emt 0:00:04]} Nf6 {[%emt 0:01:03]} 5. O-O {[%emt 0:00:13]} b5 {[%emt 0:00:45]} 6. Bb3 {[%emt 0:00:06]} Bc5 {[%emt 0:00:05]} 7. d3 {[%emt 0:01:21]} d6 {[%emt 0:01:35]} 8. c3 {[%emt 0:02:00] C78: Ruy Lopez: Archangelsk and Möller Defences.} Bb6 {[%emt 0:01:44]} 9. h3 {[%emt 0:03:01]} (9. a4 $5 {[%cal Ra4b5]}) 9... O-O {[%emt 0:03:27]} 10. Re1 {[%emt 0:04:42] The position is equal.} h6 {[%emt 0:05:01]} 11. Nbd2 {[%emt 0:05:12]} Ne7 {[%emt 0:03:09]} 12. Nf1 {[%emt 0:04:55] 12.a4 gains popularity.} Ng6 {[%emt 0:01:02]} 13. d4 {[%emt 0:11:02]} exd4 {[%emt 0:08:18]} 14. cxd4 {[%emt 0:04:19] [#]} d5 $146 {[%emt 0:00:31]} ({Predecessor:} 14... Re8 15. Ng3 Bb7 16. Bc2 Nd7 17. Be3 Ndf8 18. b4 a5 19. a3 h5 20. Ng5 f6 21. Qxh5 fxg5 22. Bxg5 {0-1 Barsciauskas,G (1725)-Galuscak,V (1833) Klaipeda-ch 2015 (6)}) 15. e5 {[%emt 0:15:55]} Ne4 {[%emt 0:02:10]} 16. N1d2 {[%emt 0:06:12]} (16. Be3 $14) 16... Bf5 {[%emt 0:10:46]} (16... Bb7 $5 {[%cal Rc7c5]}) 17. Bc2 {[%emt 0:08:13]} Nxd2 {[%emt 0:11:55]} (17... Ba5 18. Re3 $14 (18. Bxe4 dxe4 19. Rxe4 c5 $17)) (17... c5 {feels hotter.} 18. Nxe4 Bxe4 19. Rxe4 dxe4 20. Bxe4 Qe7) 18. Bxd2 {[%emt 0:03:08]} ({But not} 18. Bxf5 Nxf3+ 19. Qxf3 (19. gxf3 Nh4 $17) 19... Bxd4 $17) (18. Qxd2 {simplifies} Bxc2 19. Qxc2 a5 20. Be3) 18... Bxc2 {[%emt 0:00:44]} 19. Qxc2 {[%emt 0:00:04]} Nh4 {[%emt 0:00:19]} 20. Nxh4 {[%emt 0:02:32]} Qxh4 {[%emt 0:00:07]} 21. Bb4 {[%emt 0:02:51]} Rfe8 {[%emt 0:02:11]} 22. Bc5 {[%emt 0:01:44]} Re6 {[%emt 0:01:12]} 23. Bxb6 {[%emt 0:04:33]} Rxb6 {[%emt 0:00:54]} ({Black should play} 23... cxb6 $14 24. Rad1 Rae8) 24. Rad1 {[%emt 0:02:49]} Rg6 {[%emt 0:01:16]} 25. Re3 {[%emt 0:01:30]} (25. Qxc7 $2 {is the wrong capture.} Qxh3 26. g3 Rc8 $19) 25... c6 {[%emt 0:00:56]} 26. Qf5 {[%emt 0:06:04]} (26. Kh2 $142) 26... Qe7 {[%emt 0:03:30]} 27. Rc1 {[%emt 0:05:13]} (27. Rc3 $16) 27... Qb4 $1 $14 {[%emt 0:07:35][%csl LRb2,LRd4]} 28. Qd3 {[%emt 0:05:24]} Qxb2 {[%emt 0:01:03]} 29. Rc2 {[%emt 0:00:23]} Qb4 {[%emt 0:00:52]} 30. f4 {[%emt 0:00:54][%mdl 1024] f5 is the strong threat. White has compensation.} Rc8 $1 {[%emt 0:05:36]} 31. f5 {[%emt 0:00:36]} Rg5 {[%emt 0:00:25][%cal Bg6g5,Bg5f5,Bf5f2][%mdl 32]} 32. e6 {[%emt 0:00:33] [#] And now exf7+ would win.} Qe7 {[%emt 0:01:14]} 33. Qe2 $2 {[%emt 0:00:32] This move loses the game for White.} (33. Re5 $11 {and White is okay.}) 33... Rxf5 $19 {[%emt 0:00:43]} 34. exf7+ {[%emt 0:00:31]} (34. Qg4 {was worth a try.} Qf6 35. exf7+ Kxf7 36. Kh2) 34... Qxf7 {[%emt 0:00:05]} 35. Re7 {[%emt 0:00:30]} Qf6 {[%emt 0:04:08]} 36. Re6 $2 {[%emt 0:00:29] [#]} (36. Qe6+ Qxe6 37. Rxe6) 36... Qxd4+ {[%emt 0:00:15]} 37. Kh1 {[%emt 0:00:07]} (37. Kh2 $142 c5 38. Rd2 Qf4+ 39. g3) 37... Rcf8 {[%emt 0:00:24]} 38. Rc1 {[%emt 0:00:52] Wards off Rf1+} Rf2 {[%emt 0:00:40]} 39. Qh5 {[%emt 0:00:27]} Rf1+ {[%emt 0:00:44] Weighted Error Value: White=0.79/Black=0.10 (very precise)} 0-1

[Event "Polish Youth G18 Championship 2023"]
[Site "Jastrzebia Gora"]
[Date "2023.03.12"]
[Round "1.4"]
[White "Hertlein, Irena"]
[Black "Szczotka, Matylda"]
[Result "1-0"]
[ECO "C95"]
[WhiteElo "1994"]
[BlackElo "1451"]
[Annotator "TA"]
[PlyCount "63"]
[EventDate "2023.03.11"]
[EventType "swiss"]
[EventCountry "POL"]
[SourceTitle "playchess.com"]
[Source "ChessBase"]
[SourceQuality "1"]
[TimeControl "40/5400+30:1800+30"]

{[%evp 20,63,43,36,117,117,272,273,266,277,255,266,317,300,409,397,404,413,432,433,439,411,468,458,617,484,609,547,688,698,688,567,762,760,760,751,756,751,744,737,708,724,1120,737,672,635]} 1. e4 {[%emt 0:00:02]} e5 {[%emt 0:00:03]} 2. Nf3 {[%emt 0:00:06]} Nc6 {[%emt 0:00:05]} 3. Bb5 {[%emt 0:00:07]} a6 {[%emt 0:00:05]} 4. Ba4 {[%emt 0:00:05]} Nf6 {[%emt 0:00:07]} 5. O-O {[%emt 0:00:11]} b5 {[%emt 0:00:06]} 6. Bb3 {[%emt 0:00:06]} Be7 {[%emt 0:00:06]} 7. Re1 {[%emt 0:00:11]} d6 {[%emt 0:00:13]} 8. c3 {[%emt 0:00:27]} O-O {[%emt 0:00:21]} 9. h3 {[%emt 0:00:06]} Nb8 {[%emt 0:00:32] 9...Nb8 is setting a new trend.} 10. d4 {[%emt 0:00:11]} Nbd7 {[%emt 0:00:06]} 11. c4 {[%emt 0:00:13]} Re8 {[%emt 0:03:02] C95: Closed Ruy Lopez: Breyer Variation with 10 d4.} ({Better is} 11... Bb7 $14) 12. cxb5 $16 {[%emt 0:04:36][%cal Ob3f7] [#] Hoping for Bxf7+!} axb5 $146 {[%emt 0:00:08] [#]} (12... h6 $16) ({Predecessor:} 12... h6 13. bxa6 Bxa6 14. Nc3 Bf8 15. Be3 Qb8 16. Qc2 exd4 17. Nxd4 Nc5 18. Nc6 Qb6 19. Bd5 {½-½ Sosa,T (2421)-Toniutti,E (2231) Mina Clavero 2016 (9)}) 13. Bxf7+ $1 $18 {[%emt 0:00:32][%mdl 576] Double Attack} Kh8 {White has a decisive advantage.} (13... Kxf7 $2 14. Ng5+ Kg8 15. Ne6) 14. Bxe8 {[%emt 0:18:24]} Qxe8 {[%emt 0:01:29]} 15. Nc3 {[%emt 0:05:29]} Rb8 {[%emt 0:08:55]} 16. Nd5 c6 {[%emt 0:05:53]} 17. Nxe7 {[%emt 0:07:07]} Qxe7 {[%emt 0:00:06]} 18. dxe5 {[%emt 0:00:41]} dxe5 {[%emt 0:02:09]} 19. Bg5 {[%emt 0:01:21]} c5 {[%emt 0:05:53]} 20. Qd2 {[%emt 0:04:19]} Bb7 {[%emt 0:06:48]} 21. Rad1 {[%emt 0:02:33] White is clearly winning.} Nf8 {[%emt 0:04:14]} 22. Bxf6 {[%emt 0:03:40]} Qxf6 {[%emt 0:00:19]} 23. Qd6 {[%emt 0:03:07]} Qxd6 {[%emt 0:06:23]} 24. Rxd6 {[%emt 0:00:06]} Re8 {[%emt 0:00:11]} 25. Red1 {[%emt 0:18:32] Threatens to win with Rd8.} Bxe4 {[%emt 0:04:36]} 26. Rd8 {[%emt 0:00:08]} Rxd8 {[%emt 0:00:09]} 27. Rxd8 {[%emt 0:00:04][%cal Rd8f8] KRN-KBN} Kg8 {[%emt 0:00:09]} 28. Nxe5 {[%emt 0:00:44]} Bf5 {[%emt 0:00:22]} 29. a3 g6 30. Rb8 {[%emt 0:11:03]} b4 {[%emt 0:02:17]} 31. axb4 {[%emt 0:00:04]} cxb4 {[%emt 0:00:03]} 32. Rxb4 {[%emt 0:00:15] Black got outplayed after the opening.   Weighted Error Value: White=0.23 (precise) /Black=0.77} 1-0

[Event "Polish Youth G18 Championship 2023"]
[Site "Jastrzebia Gora"]
[Date "2023.03.12"]
[Round "1.5"]
[White "Labedz, Gabriela"]
[Black "Barwinska, Ewa"]
[Result "1/2-1/2"]
[ECO "B56"]
[WhiteElo "1425"]
[BlackElo "1963"]
[Annotator "TA"]
[PlyCount "60"]
[EventDate "2023.03.11"]
[EventType "swiss"]
[EventCountry "POL"]
[SourceTitle "playchess.com"]
[Source "ChessBase"]
[SourceQuality "1"]
[TimeControl "40/5400+30:1800+30"]

{[%evp 11,60,8,6,0,17,-18,-10,-8,0,-13,26,-77,82,4,58,51,60,48,64,43,87,50,152,123,453,454,418,178,184,173,175,166,227,66,66,66,66,66,66,0,0,0,64,0,0,0,64,0,0,0,64]} 1. e4 {[%emt 0:00:02]} c5 {[%emt 0:00:14]} 2. Nf3 {[%emt 0:00:07]} d6 {[%emt 0:00:08]} 3. d4 {[%emt 0:00:05]} cxd4 {[%emt 0:00:08]} 4. Nxd4 {[%emt 0:00:05]} Nf6 {[%emt 0:00:09]} 5. Nc3 {[%emt 0:00:06]} Nc6 {[%emt 0:00:09]} 6. Nxc6 {[%emt 0:03:38]} bxc6 {[%emt 0:00:13]} 7. Bg5 {[%emt 0:04:40] B56: Classical Sicilian: Unusual Lines.} Qb6 {[%emt 0:09:33]} 8. Bxf6 {[%emt 0:05:35]} gxf6 {[%emt 0:00:15]} 9. Rb1 {[%emt 0:05:52] [#]} Rg8 $146 {[%emt 0:10:10]} ({Predecessor:} 9... Bh6 10. Bd3 Ba6 11. O-O Rg8 12. Qe2 Bc8 13. Kh1 Bf4 14. Qh5 Bg4 15. Qh4 O-O-O {1-0 Petidis,K-Butsko,I LSS RN-2007-0-00096}) 10. g3 {[%emt 0:07:48]} Bg7 {[%emt 0:12:35]} 11. b4 {[%emt 0:18:17]} (11. Bd3 $11) 11... a5 $2 {[%emt 0:11:19] [#]} (11... f5 $17 {and life is bright.} 12. Na4 Qb7 13. exf5 c5) 12. Na4 {[%emt 0:08:44]} (12. b5 $1 $16 {[%cal Rb5c6]}) 12... Qc7 {[%emt 0:09:55]} (12... Qb7 $1 $11 13. b5 Rb8) 13. b5 $14 {[%emt 0:04:31]} cxb5 {[%emt 0:02:36]} 14. Bxb5+ {[%emt 0:01:05]} Kf8 {[%emt 0:00:16]} 15. O-O {[%emt 0:09:11]} Bb7 {[%emt 0:03:04]} 16. Re1 {[%emt 0:01:49]} e6 {[%emt 0:07:51]} ({Black should try} 16... f5 $14) 17. Re3 {[%emt 0:10:20] Black must now prevent Rc3. White is more active.} Ke7 $2 {[%emt 0:04:56][%mdl 8192]} (17... Rd8 $16 {is a better chance.}) 18. Rc3 $18 {[%emt 0:02:50]} Qd8 {[%emt 0:00:25]} 19. Bd3 {[%emt 0:03:06]} (19. Bc6 $142 Bxc6 20. Rxc6) 19... Rb8 {[%emt 0:02:02]} 20. Rcb3 {[%emt 0:01:18]} Qc7 {[%emt 0:01:11]} 21. Qh5 {[%emt 0:01:46] Threatens to win with Rc3.} Bc6 {[%emt 0:05:20] [#]} (21... h6 $142 22. Rc3 Qd8) 22. Rxb8 $2 {[%emt 0:00:54]} (22. Nb6 $1 $18) 22... Rxb8 $14 {[%emt 0:00:06]} 23. Rxb8 {[%emt 0:00:06]} Qxb8 {[%emt 0:00:04]} 24. Qxa5 {[%emt 0:00:26]} Qb1+ {[%emt 0:04:17]} 25. Kg2 {[%emt 0:00:05]} (25. Bf1 $1 $14 Qb8 26. Nc3) 25... Qb7 $1 $11 {[%emt 0:00:36][%cal Of6f5]} 26. Kg1 {[%emt 0:03:45]} ({Better is} 26. f3 $11) 26... Qb1+ $14 {[%emt 0:04:02]} (26... Bxe4 27. Bxe4 Qxe4 28. Qc7+ Ke8 29. Nc3 Qe1+ 30. Kg2) 27. Kg2 {[%emt 0:00:04] aiming for Qc7+.} (27. Bf1 $5 {[%cal Ra5c7]} Qxc2 28. Nc3 $16) 27... Qb7 {[%emt 0:00:17][%cal Of6f5] Prevents Qc7+.} 28. Kg1 {[%emt 0:00:06]} Qb1+ {[%emt 0:03:26]} (28... Bxe4 29. Bxe4 Qxe4 30. Qc7+ Ke8 31. Nc3 Qe1+ 32. Kg2) 29. Kg2 {[%emt 0:00:05]} (29. Bf1 $1 $14 Qb8 30. Nc3) 29... Qb7 $1 $11 {[%emt 0:00:07][%cal Of6f5]} 30. Kg1 {[%emt 0:00:04]} (30. f3 $11) 30... Qb1+ {[%emt 0:00:07] White really could win this.   Weighted Error Value: White=0.40/Black=0.46} (30... Bxe4 31. Bxe4 Qxe4 32. Qc7+ Ke8 33. Nc3 Qe1+ 34. Kg2) 1/2-1/2